Workbook

Sheet Revenues (Sales)
B1: Twelve Month | AD1: Company Name
B2: PROFIT & LOSS PROJECTION | AB2: FISCAL YEAR BEGINS: | AC2: JAN | AD2: =YEAR(TODAY()) -> 2017
D3: =UPPER(TEXT(DATE(FYStartYear,FYMonthNo,1),"mmm-yy")) -> JAN-17 | E3: =UPPER(TEXT(DATE(FYStartYear,FYMonthNo+1,1),"mmm-yy")) -> FEB-17 | F3: =UPPER(TEXT(DATE(FYStartYear,FYMonthNo+2,1),"mmm-yy")) -> MAR-17 | G3: =UPPER(TEXT(DATE(FYStartYear,FYMonthNo+3,1),"mmm-yy")) -> APR-17 | H3: =UPPER(TEXT(DATE(FYStartYear,FYMonthNo+4,1),"mmm-yy")) -> MAY-17 | I3: =UPPER(TEXT(DATE(FYStartYear,FYMonthNo+5,1),"mmm-yy")) -> JUN-17 | J3: =UPPER(TEXT(DATE(FYStartYear,FYMonthNo+6,1),"mmm-yy")) -> JUL-17 | K3: =UPPER(TEXT(DATE(FYStartYear,FYMonthNo+7,1),"mmm-yy")) -> AUG-17 | L3: =UPPER(TEXT(DATE(FYStartYear,FYMonthNo+8,1),"mmm-yy")) -> SEP-17 | M3: =UPPER(TEXT(DATE(FYStartYear,FYMonthNo+9,1),"mmm-yy")) -> OCT-17 | N3: =UPPER(TEXT(DATE(FYStartYear,FYMonthNo+10,1),"mmm-yy")) -> NOV-17 | O3: =UPPER(TEXT(DATE(FYStartYear,FYMonthNo+11,1),"mmm-yy")) -> DEC-17 | P3: YEARLY | Q3: IND % | R3: =LEFT(D3,3)&" %" -> JAN % | S3: =LEFT(E3,3)&" %" -> FEB % | T3: MAR % | U3: APR % | V3: MAY % | W3: JUN % | X3: JUL % | Y3: AUG % | Z3: SEP % | AA3: OCT % | AB3: NOV % | AC3: DEC % | AD3: YEAR %
B4: REVENUES (SALES) | C4: TREND | D4: Jan | E4: Feb | F4: Mar | G4: Apr | H4: May | I4: Jun | J4: Jul | K4: Aug | L4: Sep | M4: Oct | N4: Nov | O4: Dec | P4: Yearly | Q4: Index % | R4: Jan % | S4: Feb % | T4: Mar % | U4: Apr % | V4: May % | W4: Jun % | X4: Jul % | Y4: Aug % | Z4: Sep % | AA4: Oct % | AB4: Nov % | AC4: Dec % | AD4: Year %
B5: Revenue 1 | D5: 186 | E5: 108 | F5: 92 | G5: 122 | H5: 190 | I5: 71 | J5: 21 | K5: 37 | L5: 24 | M5: 178 | N5: 92 | O5: 97 | P5: =SUM(Revenue[[#This Row],[Jan]:[Dec]]) -> 1218 | Q5: 0.12 | R5: =IFERROR(Revenue[[#This Row],[Jan]]/Revenue[[#Totals],[Jan]],"-") -> 0.2980769231 | S5: =IFERROR(Revenue[[#This Row],[Feb]]/Revenue[[#Totals],[Feb]],"-") -> 0.1467391304 | T5: =IFERROR(Revenue[[#This Row],[Mar]]/Revenue[[#Totals],[Mar]],"-") -> 0.112195122 | U5: =IFERROR(Revenue[[#This Row],[Apr]]/Revenue[[#Totals],[Apr]],"-") -> 0.1996726678 | V5: =IFERROR(Revenue[[#This Row],[May]]/Revenue[[#Totals],[May]],"-") -> 0.2339901478 | W5: =IFERROR(Revenue[[#This Row],[Jun]]/Revenue[[#Totals],[Jun]],"-") -> 0.1228373702 | X5: =IFERROR(Revenue[[#This Row],[Jul]]/Revenue[[#Totals],[Jul]],"-") -> 0.0351758794 | Y5: =IFERROR(Revenue[[#This Row],[Aug]]/Revenue[[#Totals],[Aug]],"-") -> 0.05481481481 | Z5: =IFERROR(Revenue[[#This Row],[Sep]]/Revenue[[#Totals],[Sep]],"-") -> 0.03225806452 | AA5: =IFERROR(Revenue[[#This Row],[Oct]]/Revenue[[#Totals],[Oct]],"-") -> 0.2613803231 | AB5: =IFERROR(Revenue[[#This Row],[Nov]]/Revenue[[#Totals],[Nov]],"-") -> 0.1244925575 | AC5: =IFERROR(Revenue[[#This Row],[Dec]]/Revenue[[#Totals],[Dec]],"-") -> 0.09300095877 | AD5: =IFERROR(Revenue[[#This Row],[Yearly]]/Revenue[[#Totals],[Yearly]],"-") -> 0.1406466513
B6: Revenue 2 | D6: 15 | E6: 16 | F6: 198 | G6: 44 | H6: 25 | I6: 68 | J6: 43 | K6: 119 | L6: 37 | M6: 118 | N6: 29 | O6: 171 | P6: =SUM(Revenue[[#This Row],[Jan]:[Dec]]) -> 883 | Q6: 0.18 | R6: =IFERROR(Revenue[[#This Row],[Jan]]/Revenue[[#Totals],[Jan]],"-") -> 0.02403846154 | S6: =IFERROR(Revenue[[#This Row],[Feb]]/Revenue[[#Totals],[Feb]],"-") -> 0.02173913043 | T6: =IFERROR(Revenue[[#This Row],[Mar]]/Revenue[[#Totals],[Mar]],"-") -> 0.2414634146 | U6: =IFERROR(Revenue[[#This Row],[Apr]]/Revenue[[#Totals],[Apr]],"-") -> 0.07201309329 | V6: =IFERROR(Revenue[[#This Row],[May]]/Revenue[[#Totals],[May]],"-") -> 0.03078817734 | W6: =IFERROR(Revenue[[#This Row],[Jun]]/Revenue[[#Totals],[Jun]],"-") -> 0.1176470588 | X6: =IFERROR(Revenue[[#This Row],[Jul]]/Revenue[[#Totals],[Jul]],"-") -> 0.07202680067 | Y6: =IFERROR(Revenue[[#This Row],[Aug]]/Revenue[[#Totals],[Aug]],"-") -> 0.1762962963 | Z6: =IFERROR(Revenue[[#This Row],[Sep]]/Revenue[[#Totals],[Sep]],"-") -> 0.0497311828 | AA6: =IFERROR(Revenue[[#This Row],[Oct]]/Revenue[[#Totals],[Oct]],"-") -> 0.1732745962 | AB6: =IFERROR(Revenue[[#This Row],[Nov]]/Revenue[[#Totals],[Nov]],"-") -> 0.03924221922 | AC6: =IFERROR(Revenue[[#This Row],[Dec]]/Revenue[[#Totals],[Dec]],"-") -> 0.1639501438 | AD6: =IFERROR(Revenue[[#This Row],[Yearly]]/Revenue[[#Totals],[Yearly]],"-") -> 0.1019630485
B7: Revenue 3 | D7: 166 | E7: 185 | F7: 89 | G7: 170 | H7: 131 | I7: 70 | J7: 50 | K7: 149 | L7: 179 | M7: 104 | N7: 119 | O7: 187 | P7: =SUM(Revenue[[#This Row],[Jan]:[Dec]]) -> 1599 | Q7: 0.19 | R7: =IFERROR(Revenue[[#This Row],[Jan]]/Revenue[[#Totals],[Jan]],"-") -> 0.266025641 | S7: =IFERROR(Revenue[[#This Row],[Feb]]/Revenue[[#Totals],[Feb]],"-") -> 0.2513586957 | T7: =IFERROR(Revenue[[#This Row],[Mar]]/Revenue[[#Totals],[Mar]],"-") -> 0.1085365854 | U7: =IFERROR(Revenue[[#This Row],[Apr]]/Revenue[[#Totals],[Apr]],"-") -> 0.2782324059 | V7: =IFERROR(Revenue[[#This Row],[May]]/Revenue[[#Totals],[May]],"-") -> 0.1613300493 | W7: =IFERROR(Revenue[[#This Row],[Jun]]/Revenue[[#Totals],[Jun]],"-") -> 0.1211072664 | X7: =IFERROR(Revenue[[#This Row],[Jul]]/Revenue[[#Totals],[Jul]],"-") -> 0.0837520938 | Y7: =IFERROR(Revenue[[#This Row],[Aug]]/Revenue[[#Totals],[Aug]],"-") -> 0.2207407407 | Z7: =IFERROR(Revenue[[#This Row],[Sep]]/Revenue[[#Totals],[Sep]],"-") -> 0.2405913978 | AA7: =IFERROR(Revenue[[#This Row],[Oct]]/Revenue[[#Totals],[Oct]],"-") -> 0.1527165932 | AB7: =IFERROR(Revenue[[#This Row],[Nov]]/Revenue[[#Totals],[Nov]],"-") -> 0.1610284168 | AC7: =IFERROR(Revenue[[#This Row],[Dec]]/Revenue[[#Totals],[Dec]],"-") -> 0.1792905081 | AD7: =IFERROR(Revenue[[#This Row],[Yearly]]/Revenue[[#Totals],[Yearly]],"-") -> 0.1846420323
B8: Revenue 4 | D8: 21 | E8: 113 | F8: 83 | G8: 17 | H8: 130 | I8: 26 | J8: 167 | K8: 102 | L8: 82 | M8: 33 | N8: 88 | O8: 193 | P8: =SUM(Revenue[[#This Row],[Jan]:[Dec]]) -> 1055 | Q8: 0.11 | R8: =IFERROR(Revenue[[#This Row],[Jan]]/Revenue[[#Totals],[Jan]],"-") -> 0.03365384615 | S8: =IFERROR(Revenue[[#This Row],[Feb]]/Revenue[[#Totals],[Feb]],"-") -> 0.1535326087 | T8: =IFERROR(Revenue[[#This Row],[Mar]]/Revenue[[#Totals],[Mar]],"-") -> 0.1012195122 | U8: =IFERROR(Revenue[[#This Row],[Apr]]/Revenue[[#Totals],[Apr]],"-") -> 0.02782324059 | V8: =IFERROR(Revenue[[#This Row],[May]]/Revenue[[#Totals],[May]],"-") -> 0.1600985222 | W8: =IFERROR(Revenue[[#This Row],[Jun]]/Revenue[[#Totals],[Jun]],"-") -> 0.04498269896 | X8: =IFERROR(Revenue[[#This Row],[Jul]]/Revenue[[#Totals],[Jul]],"-") -> 0.2797319933 | Y8: =IFERROR(Revenue[[#This Row],[Aug]]/Revenue[[#Totals],[Aug]],"-") -> 0.1511111111 | Z8: =IFERROR(Revenue[[#This Row],[Sep]]/Revenue[[#Totals],[Sep]],"-") -> 0.1102150538 | AA8: =IFERROR(Revenue[[#This Row],[Oct]]/Revenue[[#Totals],[Oct]],"-") -> 0.04845814978 | AB8: =IFERROR(Revenue[[#This Row],[Nov]]/Revenue[[#Totals],[Nov]],"-") -> 0.1190798376 | AC8: =IFERROR(Revenue[[#This Row],[Dec]]/Revenue[[#Totals],[Dec]],"-") -> 0.1850431448 | AD8: =IFERROR(Revenue[[#This Row],[Yearly]]/Revenue[[#Totals],[Yearly]],"-") -> 0.1218244804
B9: Revenue 5 | D9: 70 | E9: 160 | F9: 125 | G9: 84 | H9: 191 | I9: 97 | J9: 52 | K9: 45 | L9: 173 | M9: 136 | N9: 144 | O9: 167 | P9: =SUM(Revenue[[#This Row],[Jan]:[Dec]]) -> 1444 | Q9: 0.2 | R9: =IFERROR(Revenue[[#This Row],[Jan]]/Revenue[[#Totals],[Jan]],"-") -> 0.1121794872 | S9: =IFERROR(Revenue[[#This Row],[Feb]]/Revenue[[#Totals],[Feb]],"-") -> 0.2173913043 | T9: =IFERROR(Revenue[[#This Row],[Mar]]/Revenue[[#Totals],[Mar]],"-") -> 0.1524390244 | U9: =IFERROR(Revenue[[#This Row],[Apr]]/Revenue[[#Totals],[Apr]],"-") -> 0.1374795417 | V9: =IFERROR(Revenue[[#This Row],[May]]/Revenue[[#Totals],[May]],"-") -> 0.2352216749 | W9: =IFERROR(Revenue[[#This Row],[Jun]]/Revenue[[#Totals],[Jun]],"-") -> 0.1678200692 | X9: =IFERROR(Revenue[[#This Row],[Jul]]/Revenue[[#Totals],[Jul]],"-") -> 0.08710217755 | Y9: =IFERROR(Revenue[[#This Row],[Aug]]/Revenue[[#Totals],[Aug]],"-") -> 0.06666666667 | Z9: =IFERROR(Revenue[[#This Row],[Sep]]/Revenue[[#Totals],[Sep]],"-") -> 0.2325268817 | AA9: =IFERROR(Revenue[[#This Row],[Oct]]/Revenue[[#Totals],[Oct]],"-") -> 0.1997063142 | AB9: =IFERROR(Revenue[[#This Row],[Nov]]/Revenue[[#Totals],[Nov]],"-") -> 0.1948579161 | AC9: =IFERROR(Revenue[[#This Row],[Dec]]/Revenue[[#Totals],[Dec]],"-") -> 0.1601150527 | AD9: =IFERROR(Revenue[[#This Row],[Yearly]]/Revenue[[#Totals],[Yearly]],"-") -> 0.166743649
B10: Revenue 6 | D10: 61 | E10: 99 | F10: 70 | G10: 162 | H10: 28 | I10: 163 | J10: 101 | K10: 103 | L10: 78 | M10: 33 | N10: 162 | O10: 159 | P10: =SUM(Revenue[[#This Row],[Jan]:[Dec]]) -> 1219 | Q10: 0.1 | R10: =IFERROR(Revenue[[#This Row],[Jan]]/Revenue[[#Totals],[Jan]],"-") -> 0.09775641026 | S10: =IFERROR(Revenue[[#This Row],[Feb]]/Revenue[[#Totals],[Feb]],"-") -> 0.1345108696 | T10: =IFERROR(Revenue[[#This Row],[Mar]]/Revenue[[#Totals],[Mar]],"-") -> 0.08536585366 | U10: =IFERROR(Revenue[[#This Row],[Apr]]/Revenue[[#Totals],[Apr]],"-") -> 0.2651391162 | V10: =IFERROR(Revenue[[#This Row],[May]]/Revenue[[#Totals],[May]],"-") -> 0.03448275862 | W10: =IFERROR(Revenue[[#This Row],[Jun]]/Revenue[[#Totals],[Jun]],"-") -> 0.2820069204 | X10: =IFERROR(Revenue[[#This Row],[Jul]]/Revenue[[#Totals],[Jul]],"-") -> 0.1691792295 | Y10: =IFERROR(Revenue[[#This Row],[Aug]]/Revenue[[#Totals],[Aug]],"-") -> 0.1525925926 | Z10: =IFERROR(Revenue[[#This Row],[Sep]]/Revenue[[#Totals],[Sep]],"-") -> 0.1048387097 | AA10: =IFERROR(Revenue[[#This Row],[Oct]]/Revenue[[#Totals],[Oct]],"-") -> 0.04845814978 | AB10: =IFERROR(Revenue[[#This Row],[Nov]]/Revenue[[#Totals],[Nov]],"-") -> 0.2192151556 | AC10: =IFERROR(Revenue[[#This Row],[Dec]]/Revenue[[#Totals],[Dec]],"-") -> 0.1524448706 | AD10: =IFERROR(Revenue[[#This Row],[Yearly]]/Revenue[[#Totals],[Yearly]],"-") -> 0.1407621247
B11: Revenue 7 | D11: 105 | E11: 55 | F11: 163 | G11: 12 | H11: 117 | I11: 83 | J11: 163 | K11: 120 | L11: 171 | M11: 79 | N11: 105 | O11: 69 | P11: =SUM(Revenue[[#This Row],[Jan]:[Dec]]) -> 1242 | Q11: 0.1 | R11: =IFERROR(Revenue[[#This Row],[Jan]]/Revenue[[#Totals],[Jan]],"-") -> 0.1682692308 | S11: =IFERROR(Revenue[[#This Row],[Feb]]/Revenue[[#Totals],[Feb]],"-") -> 0.07472826087 | T11: =IFERROR(Revenue[[#This Row],[Mar]]/Revenue[[#Totals],[Mar]],"-") -> 0.1987804878 | U11: =IFERROR(Revenue[[#This Row],[Apr]]/Revenue[[#Totals],[Apr]],"-") -> 0.01963993453 | V11: =IFERROR(Revenue[[#This Row],[May]]/Revenue[[#Totals],[May]],"-") -> 0.14408867 | W11: =IFERROR(Revenue[[#This Row],[Jun]]/Revenue[[#Totals],[Jun]],"-") -> 0.1435986159 | X11: =IFERROR(Revenue[[#This Row],[Jul]]/Revenue[[#Totals],[Jul]],"-") -> 0.2730318258 | Y11: =IFERROR(Revenue[[#This Row],[Aug]]/Revenue[[#Totals],[Aug]],"-") -> 0.1777777778 | Z11: =IFERROR(Revenue[[#This Row],[Sep]]/Revenue[[#Totals],[Sep]],"-") -> 0.2298387097 | AA11: =IFERROR(Revenue[[#This Row],[Oct]]/Revenue[[#Totals],[Oct]],"-") -> 0.1160058737 | AB11: =IFERROR(Revenue[[#This Row],[Nov]]/Revenue[[#Totals],[Nov]],"-") -> 0.1420838972 | AC11: =IFERROR(Revenue[[#This Row],[Dec]]/Revenue[[#Totals],[Dec]],"-") -> 0.06615532119 | AD11: =IFERROR(Revenue[[#This Row],[Yearly]]/Revenue[[#Totals],[Yearly]],"-") -> 0.1434180139
B12: TOTAL SALES | D12: =SUBTOTAL(109,Revenue[Jan]) -> 624 | E12: =SUBTOTAL(109,Revenue[Feb]) -> 736 | F12: =SUBTOTAL(109,Revenue[Mar]) -> 820 | G12: =SUBTOTAL(109,Revenue[Apr]) -> 611 | H12: =SUBTOTAL(109,Revenue[May]) -> 812 | I12: =SUBTOTAL(109,Revenue[Jun]) -> 578 | J12: =SUBTOTAL(109,Revenue[Jul]) -> 597 | K12: =SUBTOTAL(109,Revenue[Aug]) -> 675 | L12: =SUBTOTAL(109,Revenue[Sep]) -> 744 | M12: =SUBTOTAL(109,Revenue[Oct]) -> 681 | N12: =SUBTOTAL(109,Revenue[Nov]) -> 739 | O12: =SUBTOTAL(109,Revenue[Dec]) -> 1043 | P12: =SUBTOTAL(109,Revenue[Yearly]) -> 8660 | Q12: =SUBTOTAL(109,Revenue[Index %]) -> 1 | R12: =SUBTOTAL(109,Revenue[Jan %]) -> 1 | S12: =SUBTOTAL(109,Revenue[Feb %]) -> 1 | T12: =SUBTOTAL(109,Revenue[Mar %]) -> 1 | U12: =SUBTOTAL(109,Revenue[Apr %]) -> 1 | V12: =SUBTOTAL(109,Revenue[May %]) -> 1 | W12: =SUBTOTAL(109,Revenue[Jun %]) -> 1 | X12: =SUBTOTAL(109,Revenue[Jul %]) -> 1 | Y12: =SUBTOTAL(109,Revenue[Aug %]) -> 1 | Z12: =SUBTOTAL(109,Revenue[Sep %]) -> 1 | AA12: =SUBTOTAL(109,Revenue[Oct %]) -> 1 | AB12: =SUBTOTAL(109,Revenue[Nov %]) -> 1 | AC12: =SUBTOTAL(109,Revenue[Dec %]) -> 1 | AD12: =SUBTOTAL(109,Revenue[Year %]) -> 1

Sheet Cost of Sales
B1: =Projection_Period_Title -> Twelve Month | AD1: =Company_Name -> Company Name
B2: =Wksht_Title -> PROFIT & LOSS PROJECTION | AB2: FISCAL YEAR : | AC2: =FYMonthStart -> JAN | AD2: =FYStartYear -> 2017
D3: =UPPER(TEXT(DATE(FYStartYear,FYMonthNo,1),"mmm-yy")) -> JAN-17 | E3: =UPPER(TEXT(DATE(FYStartYear,FYMonthNo+1,1),"mmm-yy")) -> FEB-17 | F3: =UPPER(TEXT(DATE(FYStartYear,FYMonthNo+2,1),"mmm-yy")) -> MAR-17 | G3: =UPPER(TEXT(DATE(FYStartYear,FYMonthNo+3,1),"mmm-yy")) -> APR-17 | H3: =UPPER(TEXT(DATE(FYStartYear,FYMonthNo+4,1),"mmm-yy")) -> MAY-17 | I3: =UPPER(TEXT(DATE(FYStartYear,FYMonthNo+5,1),"mmm-yy")) -> JUN-17 | J3: =UPPER(TEXT(DATE(FYStartYear,FYMonthNo+6,1),"mmm-yy")) -> JUL-17 | K3: =UPPER(TEXT(DATE(FYStartYear,FYMonthNo+7,1),"mmm-yy")) -> AUG-17 | L3: =UPPER(TEXT(DATE(FYStartYear,FYMonthNo+8,1),"mmm-yy")) -> SEP-17 | M3: =UPPER(TEXT(DATE(FYStartYear,FYMonthNo+9,1),"mmm-yy")) -> OCT-17 | N3: =UPPER(TEXT(DATE(FYStartYear,FYMonthNo+10,1),"mmm-yy")) -> NOV-17 | O3: =UPPER(TEXT(DATE(FYStartYear,FYMonthNo+11,1),"mmm-yy")) -> DEC-17 | P3: YEARLY | Q3: IND % | R3: =LEFT(D3,3)&" %" -> JAN % | S3: =LEFT(E3,3)&" %" -> FEB % | T3: MAR % | U3: APR % | V3: MAY % | W3: JUN % | X3: JUL % | Y3: AUG % | Z3: SEP % | AA3: OCT % | AB3: NOV % | AC3: DEC % | AD3: YEAR %
B4: COST OF SALES | C4: TREND | D4: Jan | E4: Feb | F4: Mar | G4: Apr | H4: May | I4: Jun | J4: Jul | K4: Aug | L4: Sep | M4: Oct | N4: Nov | O4: Dec | P4: Yearly | Q4: Index % | R4: Jan % | S4: Feb % | T4: Mar % | U4: Apr % | V4: May % | W4: Jun % | X4: Jul % | Y4: Aug % | Z4: Sep % | AA4: Oct % | AB4: Nov % | AC4: Dec % | AD4: Year %
B5: Cost 1 | D5: 61 | E5: 78 | F5: 65 | G5: 29 | H5: 125 | I5: 49 | J5: 14 | K5: 26 | L5: 14 | M5: 129 | N5: 60 | O5: 65 | P5: =SUM(CostofSales[[#This Row],[Jan]:[Dec]]) -> 715 | Q5: 0.12 | R5: =IFERROR(CostofSales[[#This Row],[Jan]]/CostofSales[[#Totals],[Jan]],"-") -> 0.2301886792 | S5: =IFERROR(CostofSales[[#This Row],[Feb]]/CostofSales[[#Totals],[Feb]],"-") -> 0.2191011236 | T5: =IFERROR(CostofSales[[#This Row],[Mar]]/CostofSales[[#Totals],[Mar]],"-") -> 0.2063492063 | U5: =IFERROR(CostofSales[[#This Row],[Apr]]/CostofSales[[#Totals],[Apr]],"-") -> 0.1203319502 | V5: =IFERROR(CostofSales[[#This Row],[May]]/CostofSales[[#Totals],[May]],"-") -> 0.313283208 | W5: =IFERROR(CostofSales[[#This Row],[Jun]]/CostofSales[[#Totals],[Jun]],"-") -> 0.1570512821 | X5: =IFERROR(CostofSales[[#This Row],[Jul]]/CostofSales[[#Totals],[Jul]],"-") -> 0.04682274247 | Y5: =IFERROR(CostofSales[[#This Row],[Aug]]/CostofSales[[#Totals],[Aug]],"-") -> 0.1150442478 | Z5: =IFERROR(CostofSales[[#This Row],[Sep]]/CostofSales[[#Totals],[Sep]],"-") -> 0.03381642512 | AA5: =IFERROR(CostofSales[[#This Row],[Oct]]/CostofSales[[#Totals],[Oct]],"-") -> 0.4708029197 | AB5: =IFERROR(CostofSales[[#This Row],[Nov]]/CostofSales[[#Totals],[Nov]],"-") -> 0.2272727273 | AC5: =IFERROR(CostofSales[[#This Row],[Dec]]/CostofSales[[#Totals],[Dec]],"-") -> 0.1434878587 | AD5: =IFERROR(CostofSales[[#This Row],[Yearly]]/CostofSales[[#Totals],[Yearly]],"-") -> 0.1872708224
B6: Cost 2 | D6: 7 | E6: 5 | F6: 69 | G6: 32 | H6: 11 | I6: 30 | J6: 27 | K6: 32 | L6: 10 | M6: 41 | N6: 13 | O6: 105 | P6: =SUM(CostofSales[[#This Row],[Jan]:[Dec]]) -> 382 | Q6: 0.18 | R6: =IFERROR(CostofSales[[#This Row],[Jan]]/CostofSales[[#Totals],[Jan]],"-") -> 0.02641509434 | S6: =IFERROR(CostofSales[[#This Row],[Feb]]/CostofSales[[#Totals],[Feb]],"-") -> 0.01404494382 | T6: =IFERROR(CostofSales[[#This Row],[Mar]]/CostofSales[[#Totals],[Mar]],"-") -> 0.219047619 | U6: =IFERROR(CostofSales[[#This Row],[Apr]]/CostofSales[[#Totals],[Apr]],"-") -> 0.132780083 | V6: =IFERROR(CostofSales[[#This Row],[May]]/CostofSales[[#Totals],[May]],"-") -> 0.02756892231 | W6: =IFERROR(CostofSales[[#This Row],[Jun]]/CostofSales[[#Totals],[Jun]],"-") -> 0.09615384615 | X6: =IFERROR(CostofSales[[#This Row],[Jul]]/CostofSales[[#Totals],[Jul]],"-") -> 0.09030100334 | Y6: =IFERROR(CostofSales[[#This Row],[Aug]]/CostofSales[[#Totals],[Aug]],"-") -> 0.1415929204 | Z6: =IFERROR(CostofSales[[#This Row],[Sep]]/CostofSales[[#Totals],[Sep]],"-") -> 0.02415458937 | AA6: =IFERROR(CostofSales[[#This Row],[Oct]]/CostofSales[[#Totals],[Oct]],"-") -> 0.1496350365 | AB6: =IFERROR(CostofSales[[#This Row],[Nov]]/CostofSales[[#Totals],[Nov]],"-") -> 0.04924242424 | AC6: =IFERROR(CostofSales[[#This Row],[Dec]]/CostofSales[[#Totals],[Dec]],"-") -> 0.2317880795 | AD6: =IFERROR(CostofSales[[#This Row],[Yearly]]/CostofSales[[#Totals],[Yearly]],"-") -> 0.1000523834
B7: Cost 3 | D7: 99 | E7: 95 | F7: 51 | G7: 90 | H7: 21 | I7: 34 | J7: 30 | K7: 24 | L7: 109 | M7: 16 | N7: 21 | O7: 52 | P7: =SUM(CostofSales[[#This Row],[Jan]:[Dec]]) -> 642 | Q7: 0.19 | R7: =IFERROR(CostofSales[[#This Row],[Jan]]/CostofSales[[#Totals],[Jan]],"-") -> 0.3735849057 | S7: =IFERROR(CostofSales[[#This Row],[Feb]]/CostofSales[[#Totals],[Feb]],"-") -> 0.2668539326 | T7: =IFERROR(CostofSales[[#This Row],[Mar]]/CostofSales[[#Totals],[Mar]],"-") -> 0.1619047619 | U7: =IFERROR(CostofSales[[#This Row],[Apr]]/CostofSales[[#Totals],[Apr]],"-") -> 0.3734439834 | V7: =IFERROR(CostofSales[[#This Row],[May]]/CostofSales[[#Totals],[May]],"-") -> 0.05263157895 | W7: =IFERROR(CostofSales[[#This Row],[Jun]]/CostofSales[[#Totals],[Jun]],"-") -> 0.108974359 | X7: =IFERROR(CostofSales[[#This Row],[Jul]]/CostofSales[[#Totals],[Jul]],"-") -> 0.1003344482 | Y7: =IFERROR(CostofSales[[#This Row],[Aug]]/CostofSales[[#Totals],[Aug]],"-") -> 0.1061946903 | Z7: =IFERROR(CostofSales[[#This Row],[Sep]]/CostofSales[[#Totals],[Sep]],"-") -> 0.2632850242 | AA7: =IFERROR(CostofSales[[#This Row],[Oct]]/CostofSales[[#Totals],[Oct]],"-") -> 0.05839416058 | AB7: =IFERROR(CostofSales[[#This Row],[Nov]]/CostofSales[[#Totals],[Nov]],"-") -> 0.07954545455 | AC7: =IFERROR(CostofSales[[#This Row],[Dec]]/CostofSales[[#Totals],[Dec]],"-") -> 0.114790287 | AD7: =IFERROR(CostofSales[[#This Row],[Yearly]]/CostofSales[[#Totals],[Yearly]],"-") -> 0.1681508643
B8: Cost 4 | D8: 13 | E8: 28 | F8: 15 | G8: 8 | H8: 84 | I8: 12 | J8: 54 | K8: 72 | L8: 49 | M8: 24 | N8: 60 | O8: 39 | P8: =SUM(CostofSales[[#This Row],[Jan]:[Dec]]) -> 458 | Q8: 0.11 | R8: =IFERROR(CostofSales[[#This Row],[Jan]]/CostofSales[[#Totals],[Jan]],"-") -> 0.04905660377 | S8: =IFERROR(CostofSales[[#This Row],[Feb]]/CostofSales[[#Totals],[Feb]],"-") -> 0.07865168539 | T8: =IFERROR(CostofSales[[#This Row],[Mar]]/CostofSales[[#Totals],[Mar]],"-") -> 0.04761904762 | U8: =IFERROR(CostofSales[[#This Row],[Apr]]/CostofSales[[#Totals],[Apr]],"-") -> 0.03319502075 | V8: =IFERROR(CostofSales[[#This Row],[May]]/CostofSales[[#Totals],[May]],"-") -> 0.2105263158 | W8: =IFERROR(CostofSales[[#This Row],[Jun]]/CostofSales[[#Totals],[Jun]],"-") -> 0.03846153846 | X8: =IFERROR(CostofSales[[#This Row],[Jul]]/CostofSales[[#Totals],[Jul]],"-") -> 0.1806020067 | Y8: =IFERROR(CostofSales[[#This Row],[Aug]]/CostofSales[[#Totals],[Aug]],"-") -> 0.3185840708 | Z8: =IFERROR(CostofSales[[#This Row],[Sep]]/CostofSales[[#Totals],[Sep]],"-") -> 0.1183574879 | AA8: =IFERROR(CostofSales[[#This Row],[Oct]]/CostofSales[[#Totals],[Oct]],"-") -> 0.08759124088 | AB8: =IFERROR(CostofSales[[#This Row],[Nov]]/CostofSales[[#Totals],[Nov]],"-") -> 0.2272727273 | AC8: =IFERROR(CostofSales[[#This Row],[Dec]]/CostofSales[[#Totals],[Dec]],"-") -> 0.08609271523 | AD8: =IFERROR(CostofSales[[#This Row],[Yearly]]/CostofSales[[#Totals],[Yearly]],"-") -> 0.1199580932
B9: Cost 5 | D9: 34 | E9: 78 | F9: 43 | G9: 30 | H9: 77 | I9: 54 | J9: 26 | K9: 13 | L9: 56 | M9: 30 | N9: 40 | O9: 63 | P9: =SUM(CostofSales[[#This Row],[Jan]:[Dec]]) -> 544 | Q9: 0.2 | R9: =IFERROR(CostofSales[[#This Row],[Jan]]/CostofSales[[#Totals],[Jan]],"-") -> 0.1283018868 | S9: =IFERROR(CostofSales[[#This Row],[Feb]]/CostofSales[[#Totals],[Feb]],"-") -> 0.2191011236 | T9: =IFERROR(CostofSales[[#This Row],[Mar]]/CostofSales[[#Totals],[Mar]],"-") -> 0.1365079365 | U9: =IFERROR(CostofSales[[#This Row],[Apr]]/CostofSales[[#Totals],[Apr]],"-") -> 0.1244813278 | V9: =IFERROR(CostofSales[[#This Row],[May]]/CostofSales[[#Totals],[May]],"-") -> 0.1929824561 | W9: =IFERROR(CostofSales[[#This Row],[Jun]]/CostofSales[[#Totals],[Jun]],"-") -> 0.1730769231 | X9: =IFERROR(CostofSales[[#This Row],[Jul]]/CostofSales[[#Totals],[Jul]],"-") -> 0.08695652174 | Y9: =IFERROR(CostofSales[[#This Row],[Aug]]/CostofSales[[#Totals],[Aug]],"-") -> 0.05752212389 | Z9: =IFERROR(CostofSales[[#This Row],[Sep]]/CostofSales[[#Totals],[Sep]],"-") -> 0.1352657005 | AA9: =IFERROR(CostofSales[[#This Row],[Oct]]/CostofSales[[#Totals],[Oct]],"-") -> 0.1094890511 | AB9: =IFERROR(CostofSales[[#This Row],[Nov]]/CostofSales[[#Totals],[Nov]],"-") -> 0.1515151515 | AC9: =IFERROR(CostofSales[[#This Row],[Dec]]/CostofSales[[#Totals],[Dec]],"-") -> 0.1390728477 | AD9: =IFERROR(CostofSales[[#This Row],[Yearly]]/CostofSales[[#Totals],[Yearly]],"-") -> 0.1424829754
B10: Cost 6 | D10: 33 | E10: 61 | F10: 42 | G10: 43 | H10: 19 | I10: 94 | J10: 46 | K10: 15 | L10: 55 | M10: 15 | N10: 37 | O10: 89 | P10: =SUM(CostofSales[[#This Row],[Jan]:[Dec]]) -> 549 | Q10: 0.1 | R10: =IFERROR(CostofSales[[#This Row],[Jan]]/CostofSales[[#Totals],[Jan]],"-") -> 0.1245283019 | S10: =IFERROR(CostofSales[[#This Row],[Feb]]/CostofSales[[#Totals],[Feb]],"-") -> 0.1713483146 | T10: =IFERROR(CostofSales[[#This Row],[Mar]]/CostofSales[[#Totals],[Mar]],"-") -> 0.1333333333 | U10: =IFERROR(CostofSales[[#This Row],[Apr]]/CostofSales[[#Totals],[Apr]],"-") -> 0.1784232365 | V10: =IFERROR(CostofSales[[#This Row],[May]]/CostofSales[[#Totals],[May]],"-") -> 0.04761904762 | W10: =IFERROR(CostofSales[[#This Row],[Jun]]/CostofSales[[#Totals],[Jun]],"-") -> 0.3012820513 | X10: =IFERROR(CostofSales[[#This Row],[Jul]]/CostofSales[[#Totals],[Jul]],"-") -> 0.1538461538 | Y10: =IFERROR(CostofSales[[#This Row],[Aug]]/CostofSales[[#Totals],[Aug]],"-") -> 0.06637168142 | Z10: =IFERROR(CostofSales[[#This Row],[Sep]]/CostofSales[[#Totals],[Sep]],"-") -> 0.1328502415 | AA10: =IFERROR(CostofSales[[#This Row],[Oct]]/CostofSales[[#Totals],[Oct]],"-") -> 0.05474452555 | AB10: =IFERROR(CostofSales[[#This Row],[Nov]]/CostofSales[[#Totals],[Nov]],"-") -> 0.1401515152 | AC10: =IFERROR(CostofSales[[#This Row],[Dec]]/CostofSales[[#Totals],[Dec]],"-") -> 0.1964679912 | AD10: =IFERROR(CostofSales[[#This Row],[Yearly]]/CostofSales[[#Totals],[Yearly]],"-") -> 0.1437925616
B11: Cost 7 | D11: 18 | E11: 11 | F11: 30 | G11: 9 | H11: 62 | I11: 39 | J11: 102 | K11: 44 | L11: 121 | M11: 19 | N11: 33 | O11: 40 | P11: =SUM(CostofSales[[#This Row],[Jan]:[Dec]]) -> 528 | Q11: 0.1 | R11: =IFERROR(CostofSales[[#This Row],[Jan]]/CostofSales[[#Totals],[Jan]],"-") -> 0.0679245283 | S11: =IFERROR(CostofSales[[#This Row],[Feb]]/CostofSales[[#Totals],[Feb]],"-") -> 0.0308988764 | T11: =IFERROR(CostofSales[[#This Row],[Mar]]/CostofSales[[#Totals],[Mar]],"-") -> 0.09523809524 | U11: =IFERROR(CostofSales[[#This Row],[Apr]]/CostofSales[[#Totals],[Apr]],"-") -> 0.03734439834 | V11: =IFERROR(CostofSales[[#This Row],[May]]/CostofSales[[#Totals],[May]],"-") -> 0.1553884712 | W11: =IFERROR(CostofSales[[#This Row],[Jun]]/CostofSales[[#Totals],[Jun]],"-") -> 0.125 | X11: =IFERROR(CostofSales[[#This Row],[Jul]]/CostofSales[[#Totals],[Jul]],"-") -> 0.3411371237 | Y11: =IFERROR(CostofSales[[#This Row],[Aug]]/CostofSales[[#Totals],[Aug]],"-") -> 0.1946902655 | Z11: =IFERROR(CostofSales[[#This Row],[Sep]]/CostofSales[[#Totals],[Sep]],"-") -> 0.2922705314 | AA11: =IFERROR(CostofSales[[#This Row],[Oct]]/CostofSales[[#Totals],[Oct]],"-") -> 0.06934306569 | AB11: =IFERROR(CostofSales[[#This Row],[Nov]]/CostofSales[[#Totals],[Nov]],"-") -> 0.125 | AC11: =IFERROR(CostofSales[[#This Row],[Dec]]/CostofSales[[#Totals],[Dec]],"-") -> 0.08830022075 | AD11: =IFERROR(CostofSales[[#This Row],[Yearly]]/CostofSales[[#Totals],[Yearly]],"-") -> 0.1382922996
B12: TOTAL COST OF SALES | D12: =SUBTOTAL(109,CostofSales[Jan]) -> 265 | E12: =SUBTOTAL(109,CostofSales[Feb]) -> 356 | F12: =SUBTOTAL(109,CostofSales[Mar]) -> 315 | G12: =SUBTOTAL(109,CostofSales[Apr]) -> 241 | H12: =SUBTOTAL(109,CostofSales[May]) -> 399 | I12: =SUBTOTAL(109,CostofSales[Jun]) -> 312 | J12: =SUBTOTAL(109,CostofSales[Jul]) -> 299 | K12: =SUBTOTAL(109,CostofSales[Aug]) -> 226 | L12: =SUBTOTAL(109,CostofSales[Sep]) -> 414 | M12: =SUBTOTAL(109,CostofSales[Oct]) -> 274 | N12: =SUBTOTAL(109,CostofSales[Nov]) -> 264 | O12: =SUBTOTAL(109,CostofSales[Dec]) -> 453 | P12: =SUBTOTAL(109,CostofSales[Yearly]) -> 3818 | Q12: =SUBTOTAL(109,CostofSales[Index %]) -> 1 | R12: =SUBTOTAL(109,CostofSales[Jan %]) -> 1 | S12: =SUBTOTAL(109,CostofSales[Feb %]) -> 1 | T12: =SUBTOTAL(109,CostofSales[Mar %]) -> 1 | U12: =SUBTOTAL(109,CostofSales[Apr %]) -> 1 | V12: =SUBTOTAL(109,CostofSales[May %]) -> 1 | W12: =SUBTOTAL(109,CostofSales[Jun %]) -> 1 | X12: =SUBTOTAL(109,CostofSales[Jul %]) -> 1 | Y12: =SUBTOTAL(109,CostofSales[Aug %]) -> 1 | Z12: =SUBTOTAL(109,CostofSales[Sep %]) -> 1 | AA12: =SUBTOTAL(109,CostofSales[Oct %]) -> 1 | AB12: =SUBTOTAL(109,CostofSales[Nov %]) -> 1 | AC12: =SUBTOTAL(109,CostofSales[Dec %]) -> 1 | AD12: =SUBTOTAL(109,CostofSales[Year %]) -> 1
B14: Gross Profit | D14: =Revenue[[#Totals],[Jan]]-CostofSales[[#Totals],[Jan]] -> 359 | E14: =Revenue[[#Totals],[Feb]]-CostofSales[[#Totals],[Feb]] -> 380 | F14: =Revenue[[#Totals],[Mar]]-CostofSales[[#Totals],[Mar]] -> 505 | G14: =Revenue[[#Totals],[Apr]]-CostofSales[[#Totals],[Apr]] -> 370 | H14: =Revenue[[#Totals],[May]]-CostofSales[[#Totals],[May]] -> 413 | I14: =Revenue[[#Totals],[Jun]]-CostofSales[[#Totals],[Jun]] -> 266 | J14: =Revenue[[#Totals],[Jul]]-CostofSales[[#Totals],[Jul]] -> 298 | K14: =Revenue[[#Totals],[Aug]]-CostofSales[[#Totals],[Aug]] -> 449 | L14: =Revenue[[#Totals],[Sep]]-CostofSales[[#Totals],[Sep]] -> 330 | M14: =Revenue[[#Totals],[Oct]]-CostofSales[[#Totals],[Oct]] -> 407 | N14: =Revenue[[#Totals],[Nov]]-CostofSales[[#Totals],[Nov]] -> 475 | O14: =Revenue[[#Totals],[Dec]]-CostofSales[[#Totals],[Dec]] -> 590 | P14: =Revenue[[#Totals],[Yearly]]-CostofSales[[#Totals],[Yearly]] -> 4842 | R14: =D14/$P$14 -> 0.07414291615 | S14: 0.07847996696 | T14: 0.1042957456 | U14: 0.07641470467 | V14: 0.08529533251 | W14: 0.05493597687 | X14: 0.06154481619 | Y14: 0.09273027675 | Z14: 0.06815365551 | AA14: 0.08405617513 | AB14: 0.09809995869 | AC14: 0.121850475 | AD14: 1

Sheet Expenses
B1: =Projection_Period_Title -> Twelve Month | AD1: =Company_Name -> Company Name
B2: ='Revenues (Sales)'!$B$2 -> PROFIT & LOSS PROJECTION | AB2: FISCAL YEAR : | AC2: =FYMonthStart -> JAN | AD2: =FYStartYear -> 2017
D3: =UPPER(TEXT(DATE(FYStartYear,FYMonthNo,1),"mmm-yy")) -> JAN-17 | E3: =UPPER(TEXT(DATE(FYStartYear,FYMonthNo+1,1),"mmm-yy")) -> FEB-17 | F3: =UPPER(TEXT(DATE(FYStartYear,FYMonthNo+2,1),"mmm-yy")) -> MAR-17 | G3: =UPPER(TEXT(DATE(FYStartYear,FYMonthNo+3,1),"mmm-yy")) -> APR-17 | H3: =UPPER(TEXT(DATE(FYStartYear,FYMonthNo+4,1),"mmm-yy")) -> MAY-17 | I3: =UPPER(TEXT(DATE(FYStartYear,FYMonthNo+5,1),"mmm-yy")) -> JUN-17 | J3: =UPPER(TEXT(DATE(FYStartYear,FYMonthNo+6,1),"mmm-yy")) -> JUL-17 | K3: =UPPER(TEXT(DATE(FYStartYear,FYMonthNo+7,1),"mmm-yy")) -> AUG-17 | L3: =UPPER(TEXT(DATE(FYStartYear,FYMonthNo+8,1),"mmm-yy")) -> SEP-17 | M3: =UPPER(TEXT(DATE(FYStartYear,FYMonthNo+9,1),"mmm-yy")) -> OCT-17 | N3: =UPPER(TEXT(DATE(FYStartYear,FYMonthNo+10,1),"mmm-yy")) -> NOV-17 | O3: =UPPER(TEXT(DATE(FYStartYear,FYMonthNo+11,1),"mmm-yy")) -> DEC-17 | P3: YEARLY | Q3: IND % | R3: =LEFT(D3,3)&" %" -> JAN % | S3: =LEFT(E3,3)&" %" -> FEB % | T3: MAR % | U3: APR % | V3: MAY % | W3: JUN % | X3: JUL % | Y3: AUG % | Z3: SEP % | AA3: OCT % | AB3: NOV % | AC3: DEC % | AD3: YEAR %
B4: EXPENSES | C4: TREND | D4: Column1 | E4: Feb | F4: Mar | G4: Apr | H4: May | I4: Jun | J4: Jul | K4: Aug | L4: Sep | M4: Oct | N4: Nov | O4: Dec | P4: Yearly | Q4: Index % | R4: Jan % | S4: Feb % | T4: Mar % | U4: Apr % | V4: May % | W4: Jun % | X4: Jul % | Y4: Aug % | Z4: Sep % | AA4: Oct % | AB4: Nov % | AC4: Dec % | AD4: Year %
B5: Salary expenses | D5: 10 | E5: 18 | F5: 13 | G5: 8 | H5: 22 | I5: 18 | J5: 8 | K5: 17 | L5: 20 | M5: 8 | N5: 4 | O5: 12 | P5: =SUM(tblExpenses[[#This Row],[Column1]:[Dec]]) -> 158 | Q5: 0.12 | R5: =tblExpenses[[#This Row],[Column1]]/tblExpenses[[#Totals],[Column1]] -> 0.04237288136 | S5: =tblExpenses[[#This Row],[Feb]]/tblExpenses[[#Totals],[Feb]] -> 0.08780487805 | T5: =tblExpenses[[#This Row],[Mar]]/tblExpenses[[#Totals],[Mar]] -> 0.05220883534 | U5: =tblExpenses[[#This Row],[Apr]]/tblExpenses[[#Totals],[Apr]] -> 0.030651341 | V5: =tblExpenses[[#This Row],[May]]/tblExpenses[[#Totals],[May]] -> 0.08560311284 | W5: =tblExpenses[[#This Row],[Jun]]/tblExpenses[[#Totals],[Jun]] -> 0.06569343066 | X5: =tblExpenses[[#This Row],[Jul]]/tblExpenses[[#Totals],[Jul]] -> 0.03007518797 | Y5: =tblExpenses[[#This Row],[Aug]]/tblExpenses[[#Totals],[Aug]] -> 0.07234042553 | Z5: =tblExpenses[[#This Row],[Sep]]/tblExpenses[[#Totals],[Sep]] -> 0.08695652174 | AA5: =tblExpenses[[#This Row],[Oct]]/tblExpenses[[#Totals],[Oct]] -> 0.03088803089 | AB5: =tblExpenses[[#This Row],[Nov]]/tblExpenses[[#Totals],[Nov]] -> 0.01351351351 | AC5: =tblExpenses[[#This Row],[Dec]]/tblExpenses[[#Totals],[Dec]] -> 0.05194805195 | AD5: =tblExpenses[[#This Row],[Yearly]]/tblExpenses[[#Totals],[Yearly]] -> 0.05268422808
B6: Payroll expenses | D6: 23 | E6: 11 | F6: 7 | G6: 14 | H6: 12 | I6: 19 | J6: 19 | K6: 4 | L6: 7 | M6: 13 | N6: 25 | O6: 5 | P6: =SUM(tblExpenses[[#This Row],[Column1]:[Dec]]) -> 159 | Q6: 0.09 | R6: =tblExpenses[[#This Row],[Column1]]/tblExpenses[[#Totals],[Column1]] -> 0.09745762712 | S6: =tblExpenses[[#This Row],[Feb]]/tblExpenses[[#Totals],[Feb]] -> 0.05365853659 | T6: =tblExpenses[[#This Row],[Mar]]/tblExpenses[[#Totals],[Mar]] -> 0.0281124498 | U6: =tblExpenses[[#This Row],[Apr]]/tblExpenses[[#Totals],[Apr]] -> 0.05363984674 | V6: =tblExpenses[[#This Row],[May]]/tblExpenses[[#Totals],[May]] -> 0.046692607 | W6: =tblExpenses[[#This Row],[Jun]]/tblExpenses[[#Totals],[Jun]] -> 0.06934306569 | X6: =tblExpenses[[#This Row],[Jul]]/tblExpenses[[#Totals],[Jul]] -> 0.07142857143 | Y6: =tblExpenses[[#This Row],[Aug]]/tblExpenses[[#Totals],[Aug]] -> 0.0170212766 | Z6: =tblExpenses[[#This Row],[Sep]]/tblExpenses[[#Totals],[Sep]] -> 0.03043478261 | AA6: =tblExpenses[[#This Row],[Oct]]/tblExpenses[[#Totals],[Oct]] -> 0.05019305019 | AB6: =tblExpenses[[#This Row],[Nov]]/tblExpenses[[#Totals],[Nov]] -> 0.08445945946 | AC6: =tblExpenses[[#This Row],[Dec]]/tblExpenses[[#Totals],[Dec]] -> 0.02164502165 | AD6: =tblExpenses[[#This Row],[Yearly]]/tblExpenses[[#Totals],[Yearly]] -> 0.05301767256
B7: Outside services | D7: 23 | E7: 20 | F7: 3 | G7: 16 | H7: 10 | I7: 5 | J7: 20 | K7: 7 | L7: 4 | M7: 22 | N7: 13 | O7: 14 | P7: =SUM(tblExpenses[[#This Row],[Column1]:[Dec]]) -> 157 | Q7: 0.02 | R7: =tblExpenses[[#This Row],[Column1]]/tblExpenses[[#Totals],[Column1]] -> 0.09745762712 | S7: =tblExpenses[[#This Row],[Feb]]/tblExpenses[[#Totals],[Feb]] -> 0.09756097561 | T7: =tblExpenses[[#This Row],[Mar]]/tblExpenses[[#Totals],[Mar]] -> 0.01204819277 | U7: =tblExpenses[[#This Row],[Apr]]/tblExpenses[[#Totals],[Apr]] -> 0.06130268199 | V7: =tblExpenses[[#This Row],[May]]/tblExpenses[[#Totals],[May]] -> 0.03891050584 | W7: =tblExpenses[[#This Row],[Jun]]/tblExpenses[[#Totals],[Jun]] -> 0.01824817518 | X7: =tblExpenses[[#This Row],[Jul]]/tblExpenses[[#Totals],[Jul]] -> 0.07518796992 | Y7: =tblExpenses[[#This Row],[Aug]]/tblExpenses[[#Totals],[Aug]] -> 0.02978723404 | Z7: =tblExpenses[[#This Row],[Sep]]/tblExpenses[[#Totals],[Sep]] -> 0.01739130435 | AA7: =tblExpenses[[#This Row],[Oct]]/tblExpenses[[#Totals],[Oct]] -> 0.08494208494 | AB7: =tblExpenses[[#This Row],[Nov]]/tblExpenses[[#Totals],[Nov]] -> 0.04391891892 | AC7: =tblExpenses[[#This Row],[Dec]]/tblExpenses[[#Totals],[Dec]] -> 0.06060606061 | AD7: =tblExpenses[[#This Row],[Yearly]]/tblExpenses[[#Totals],[Yearly]] -> 0.05235078359
B8: Supplies (office and operating) | D8: 19 | E8: 4 | F8: 7 | G8: 14 | H8: 22 | I8: 10 | J8: 22 | K8: 5 | L8: 4 | M8: 12 | N8: 18 | O8: 24 | P8: =SUM(tblExpenses[[#This Row],[Column1]:[Dec]]) -> 161 | Q8: 0.08 | R8: =tblExpenses[[#This Row],[Column1]]/tblExpenses[[#Totals],[Column1]] -> 0.08050847458 | S8: =tblExpenses[[#This Row],[Feb]]/tblExpenses[[#Totals],[Feb]] -> 0.01951219512 | T8: =tblExpenses[[#This Row],[Mar]]/tblExpenses[[#Totals],[Mar]] -> 0.0281124498 | U8: =tblExpenses[[#This Row],[Apr]]/tblExpenses[[#Totals],[Apr]] -> 0.05363984674 | V8: =tblExpenses[[#This Row],[May]]/tblExpenses[[#Totals],[May]] -> 0.08560311284 | W8: =tblExpenses[[#This Row],[Jun]]/tblExpenses[[#Totals],[Jun]] -> 0.03649635036 | X8: =tblExpenses[[#This Row],[Jul]]/tblExpenses[[#Totals],[Jul]] -> 0.08270676692 | Y8: =tblExpenses[[#This Row],[Aug]]/tblExpenses[[#Totals],[Aug]] -> 0.02127659574 | Z8: =tblExpenses[[#This Row],[Sep]]/tblExpenses[[#Totals],[Sep]] -> 0.01739130435 | AA8: =tblExpenses[[#This Row],[Oct]]/tblExpenses[[#Totals],[Oct]] -> 0.04633204633 | AB8: =tblExpenses[[#This Row],[Nov]]/tblExpenses[[#Totals],[Nov]] -> 0.06081081081 | AC8: =tblExpenses[[#This Row],[Dec]]/tblExpenses[[#Totals],[Dec]] -> 0.1038961039 | AD8: =tblExpenses[[#This Row],[Yearly]]/tblExpenses[[#Totals],[Yearly]] -> 0.05368456152
B9: Repairs and maintenance | D9: 11 | E9: 11 | F9: 17 | G9: 12 | H9: 2 | I9: 14 | J9: 12 | K9: 10 | L9: 18 | M9: 11 | N9: 23 | O9: 11 | P9: =SUM(tblExpenses[[#This Row],[Column1]:[Dec]]) -> 152 | Q9: 0.03 | R9: =tblExpenses[[#This Row],[Column1]]/tblExpenses[[#Totals],[Column1]] -> 0.04661016949 | S9: =tblExpenses[[#This Row],[Feb]]/tblExpenses[[#Totals],[Feb]] -> 0.05365853659 | T9: =tblExpenses[[#This Row],[Mar]]/tblExpenses[[#Totals],[Mar]] -> 0.06827309237 | U9: =tblExpenses[[#This Row],[Apr]]/tblExpenses[[#Totals],[Apr]] -> 0.04597701149 | V9: =tblExpenses[[#This Row],[May]]/tblExpenses[[#Totals],[May]] -> 0.007782101167 | W9: =tblExpenses[[#This Row],[Jun]]/tblExpenses[[#Totals],[Jun]] -> 0.05109489051 | X9: =tblExpenses[[#This Row],[Jul]]/tblExpenses[[#Totals],[Jul]] -> 0.04511278195 | Y9: =tblExpenses[[#This Row],[Aug]]/tblExpenses[[#Totals],[Aug]] -> 0.04255319149 | Z9: =tblExpenses[[#This Row],[Sep]]/tblExpenses[[#Totals],[Sep]] -> 0.07826086957 | AA9: =tblExpenses[[#This Row],[Oct]]/tblExpenses[[#Totals],[Oct]] -> 0.04247104247 | AB9: =tblExpenses[[#This Row],[Nov]]/tblExpenses[[#Totals],[Nov]] -> 0.0777027027 | AC9: =tblExpenses[[#This Row],[Dec]]/tblExpenses[[#Totals],[Dec]] -> 0.04761904762 | AD9: =tblExpenses[[#This Row],[Yearly]]/tblExpenses[[#Totals],[Yearly]] -> 0.05068356119
B10: Advertising | D10: 2 | E10: 16 | F10: 6 | G10: 13 | H10: 11 | I10: 22 | J10: 21 | K10: 3 | L10: 12 | M10: 7 | N10: 17 | O10: 20 | P10: =SUM(tblExpenses[[#This Row],[Column1]:[Dec]]) -> 150 | Q10: 0.15 | R10: =tblExpenses[[#This Row],[Column1]]/tblExpenses[[#Totals],[Column1]] -> 0.008474576271 | S10: =tblExpenses[[#This Row],[Feb]]/tblExpenses[[#Totals],[Feb]] -> 0.07804878049 | T10: =tblExpenses[[#This Row],[Mar]]/tblExpenses[[#Totals],[Mar]] -> 0.02409638554 | U10: =tblExpenses[[#This Row],[Apr]]/tblExpenses[[#Totals],[Apr]] -> 0.04980842912 | V10: =tblExpenses[[#This Row],[May]]/tblExpenses[[#Totals],[May]] -> 0.04280155642 | W10: =tblExpenses[[#This Row],[Jun]]/tblExpenses[[#Totals],[Jun]] -> 0.0802919708 | X10: =tblExpenses[[#This Row],[Jul]]/tblExpenses[[#Totals],[Jul]] -> 0.07894736842 | Y10: =tblExpenses[[#This Row],[Aug]]/tblExpenses[[#Totals],[Aug]] -> 0.01276595745 | Z10: =tblExpenses[[#This Row],[Sep]]/tblExpenses[[#Totals],[Sep]] -> 0.05217391304 | AA10: =tblExpenses[[#This Row],[Oct]]/tblExpenses[[#Totals],[Oct]] -> 0.02702702703 | AB10: =tblExpenses[[#This Row],[Nov]]/tblExpenses[[#Totals],[Nov]] -> 0.05743243243 | AC10: =tblExpenses[[#This Row],[Dec]]/tblExpenses[[#Totals],[Dec]] -> 0.08658008658 | AD10: =tblExpenses[[#This Row],[Yearly]]/tblExpenses[[#Totals],[Yearly]] -> 0.05001667222
B11: Car, delivery and travel | D11: 8 | E11: 17 | F11: 11 | G11: 11 | H11: 21 | I11: 9 | J11: 20 | K11: 3 | L11: 14 | M11: 22 | N11: 16 | O11: 12 | P11: =SUM(tblExpenses[[#This Row],[Column1]:[Dec]]) -> 164 | Q11: 0.12 | R11: =tblExpenses[[#This Row],[Column1]]/tblExpenses[[#Totals],[Column1]] -> 0.03389830508 | S11: =tblExpenses[[#This Row],[Feb]]/tblExpenses[[#Totals],[Feb]] -> 0.08292682927 | T11: =tblExpenses[[#This Row],[Mar]]/tblExpenses[[#Totals],[Mar]] -> 0.04417670683 | U11: =tblExpenses[[#This Row],[Apr]]/tblExpenses[[#Totals],[Apr]] -> 0.04214559387 | V11: =tblExpenses[[#This Row],[May]]/tblExpenses[[#Totals],[May]] -> 0.08171206226 | W11: =tblExpenses[[#This Row],[Jun]]/tblExpenses[[#Totals],[Jun]] -> 0.03284671533 | X11: =tblExpenses[[#This Row],[Jul]]/tblExpenses[[#Totals],[Jul]] -> 0.07518796992 | Y11: =tblExpenses[[#This Row],[Aug]]/tblExpenses[[#Totals],[Aug]] -> 0.01276595745 | Z11: =tblExpenses[[#This Row],[Sep]]/tblExpenses[[#Totals],[Sep]] -> 0.06086956522 | AA11: =tblExpenses[[#This Row],[Oct]]/tblExpenses[[#Totals],[Oct]] -> 0.08494208494 | AB11: =tblExpenses[[#This Row],[Nov]]/tblExpenses[[#Totals],[Nov]] -> 0.05405405405 | AC11: =tblExpenses[[#This Row],[Dec]]/tblExpenses[[#Totals],[Dec]] -> 0.05194805195 | AD11: =tblExpenses[[#This Row],[Yearly]]/tblExpenses[[#Totals],[Yearly]] -> 0.05468489496
B12: Accounting and legal | D12: 5 | E12: 13 | F12: 6 | G12: 15 | H12: 19 | I12: 10 | J12: 12 | K12: 9 | L12: 15 | M12: 16 | N12: 4 | O12: 9 | P12: =SUM(tblExpenses[[#This Row],[Column1]:[Dec]]) -> 133 | Q12: 0.09 | R12: =tblExpenses[[#This Row],[Column1]]/tblExpenses[[#Totals],[Column1]] -> 0.02118644068 | S12: =tblExpenses[[#This Row],[Feb]]/tblExpenses[[#Totals],[Feb]] -> 0.06341463415 | T12: =tblExpenses[[#This Row],[Mar]]/tblExpenses[[#Totals],[Mar]] -> 0.02409638554 | U12: =tblExpenses[[#This Row],[Apr]]/tblExpenses[[#Totals],[Apr]] -> 0.05747126437 | V12: =tblExpenses[[#This Row],[May]]/tblExpenses[[#Totals],[May]] -> 0.07392996109 | W12: =tblExpenses[[#This Row],[Jun]]/tblExpenses[[#Totals],[Jun]] -> 0.03649635036 | X12: =tblExpenses[[#This Row],[Jul]]/tblExpenses[[#Totals],[Jul]] -> 0.04511278195 | Y12: =tblExpenses[[#This Row],[Aug]]/tblExpenses[[#Totals],[Aug]] -> 0.03829787234 | Z12: =tblExpenses[[#This Row],[Sep]]/tblExpenses[[#Totals],[Sep]] -> 0.0652173913 | AA12: =tblExpenses[[#This Row],[Oct]]/tblExpenses[[#Totals],[Oct]] -> 0.06177606178 | AB12: =tblExpenses[[#This Row],[Nov]]/tblExpenses[[#Totals],[Nov]] -> 0.01351351351 | AC12: =tblExpenses[[#This Row],[Dec]]/tblExpenses[[#Totals],[Dec]] -> 0.03896103896 | AD12: =tblExpenses[[#This Row],[Yearly]]/tblExpenses[[#Totals],[Yearly]] -> 0.04434811604
B13: Rent | D13: 8 | E13: 4 | F13: 23 | G13: 25 | H13: 10 | I13: 24 | J13: 22 | K13: 5 | L13: 12 | M13: 24 | N13: 24 | O13: 12 | P13: =SUM(tblExpenses[[#This Row],[Column1]:[Dec]]) -> 193 | Q13: 0.01 | R13: =tblExpenses[[#This Row],[Column1]]/tblExpenses[[#Totals],[Column1]] -> 0.03389830508 | S13: =tblExpenses[[#This Row],[Feb]]/tblExpenses[[#Totals],[Feb]] -> 0.01951219512 | T13: =tblExpenses[[#This Row],[Mar]]/tblExpenses[[#Totals],[Mar]] -> 0.09236947791 | U13: =tblExpenses[[#This Row],[Apr]]/tblExpenses[[#Totals],[Apr]] -> 0.09578544061 | V13: =tblExpenses[[#This Row],[May]]/tblExpenses[[#Totals],[May]] -> 0.03891050584 | W13: =tblExpenses[[#This Row],[Jun]]/tblExpenses[[#Totals],[Jun]] -> 0.08759124088 | X13: =tblExpenses[[#This Row],[Jul]]/tblExpenses[[#Totals],[Jul]] -> 0.08270676692 | Y13: =tblExpenses[[#This Row],[Aug]]/tblExpenses[[#Totals],[Aug]] -> 0.02127659574 | Z13: =tblExpenses[[#This Row],[Sep]]/tblExpenses[[#Totals],[Sep]] -> 0.05217391304 | AA13: =tblExpenses[[#This Row],[Oct]]/tblExpenses[[#Totals],[Oct]] -> 0.09266409266 | AB13: =tblExpenses[[#This Row],[Nov]]/tblExpenses[[#Totals],[Nov]] -> 0.08108108108 | AC13: =tblExpenses[[#This Row],[Dec]]/tblExpenses[[#Totals],[Dec]] -> 0.05194805195 | AD13: =tblExpenses[[#This Row],[Yearly]]/tblExpenses[[#Totals],[Yearly]] -> 0.06435478493
B14: Telephone | D14: 25 | E14: 2 | F14: 12 | G14: 25 | H14: 10 | I14: 24 | J14: 3 | K14: 20 | L14: 3 | M14: 9 | N14: 20 | O14: 18 | P14: =SUM(tblExpenses[[#This Row],[Column1]:[Dec]]) -> 171 | Q14: 0.01 | R14: =tblExpenses[[#This Row],[Column1]]/tblExpenses[[#Totals],[Column1]] -> 0.1059322034 | S14: =tblExpenses[[#This Row],[Feb]]/tblExpenses[[#Totals],[Feb]] -> 0.009756097561 | T14: =tblExpenses[[#This Row],[Mar]]/tblExpenses[[#Totals],[Mar]] -> 0.04819277108 | U14: =tblExpenses[[#This Row],[Apr]]/tblExpenses[[#Totals],[Apr]] -> 0.09578544061 | V14: =tblExpenses[[#This Row],[May]]/tblExpenses[[#Totals],[May]] -> 0.03891050584 | W14: =tblExpenses[[#This Row],[Jun]]/tblExpenses[[#Totals],[Jun]] -> 0.08759124088 | X14: =tblExpenses[[#This Row],[Jul]]/tblExpenses[[#Totals],[Jul]] -> 0.01127819549 | Y14: =tblExpenses[[#This Row],[Aug]]/tblExpenses[[#Totals],[Aug]] -> 0.08510638298 | Z14: =tblExpenses[[#This Row],[Sep]]/tblExpenses[[#Totals],[Sep]] -> 0.01304347826 | AA14: =tblExpenses[[#This Row],[Oct]]/tblExpenses[[#Totals],[Oct]] -> 0.03474903475 | AB14: =tblExpenses[[#This Row],[Nov]]/tblExpenses[[#Totals],[Nov]] -> 0.06756756757 | AC14: =tblExpenses[[#This Row],[Dec]]/tblExpenses[[#Totals],[Dec]] -> 0.07792207792 | AD14: =tblExpenses[[#This Row],[Yearly]]/tblExpenses[[#Totals],[Yearly]] -> 0.05701900634
B15: Utilities | D15: 16 | E15: 19 | F15: 9 | G15: 16 | H15: 13 | I15: 2 | J15: 4 | K15: 24 | L15: 16 | M15: 22 | N15: 7 | O15: 18 | P15: =SUM(tblExpenses[[#This Row],[Column1]:[Dec]]) -> 166 | Q15: 0.01 | R15: =tblExpenses[[#This Row],[Column1]]/tblExpenses[[#Totals],[Column1]] -> 0.06779661017 | S15: =tblExpenses[[#This Row],[Feb]]/tblExpenses[[#Totals],[Feb]] -> 0.09268292683 | T15: =tblExpenses[[#This Row],[Mar]]/tblExpenses[[#Totals],[Mar]] -> 0.03614457831 | U15: =tblExpenses[[#This Row],[Apr]]/tblExpenses[[#Totals],[Apr]] -> 0.06130268199 | V15: =tblExpenses[[#This Row],[May]]/tblExpenses[[#Totals],[May]] -> 0.05058365759 | W15: =tblExpenses[[#This Row],[Jun]]/tblExpenses[[#Totals],[Jun]] -> 0.007299270073 | X15: =tblExpenses[[#This Row],[Jul]]/tblExpenses[[#Totals],[Jul]] -> 0.01503759398 | Y15: =tblExpenses[[#This Row],[Aug]]/tblExpenses[[#Totals],[Aug]] -> 0.1021276596 | Z15: =tblExpenses[[#This Row],[Sep]]/tblExpenses[[#Totals],[Sep]] -> 0.06956521739 | AA15: =tblExpenses[[#This Row],[Oct]]/tblExpenses[[#Totals],[Oct]] -> 0.08494208494 | AB15: =tblExpenses[[#This Row],[Nov]]/tblExpenses[[#Totals],[Nov]] -> 0.02364864865 | AC15: =tblExpenses[[#This Row],[Dec]]/tblExpenses[[#Totals],[Dec]] -> 0.07792207792 | AD15: =tblExpenses[[#This Row],[Yearly]]/tblExpenses[[#Totals],[Yearly]] -> 0.05535178393
B16: Insurance | D16: 12 | E16: 9 | F16: 16 | G16: 19 | H16: 25 | I16: 17 | J16: 20 | K16: 14 | L16: 5 | M16: 14 | N16: 5 | O16: 2 | P16: =SUM(tblExpenses[[#This Row],[Column1]:[Dec]]) -> 158 | Q16: 0.01 | R16: =tblExpenses[[#This Row],[Column1]]/tblExpenses[[#Totals],[Column1]] -> 0.05084745763 | S16: =tblExpenses[[#This Row],[Feb]]/tblExpenses[[#Totals],[Feb]] -> 0.04390243902 | T16: =tblExpenses[[#This Row],[Mar]]/tblExpenses[[#Totals],[Mar]] -> 0.06425702811 | U16: =tblExpenses[[#This Row],[Apr]]/tblExpenses[[#Totals],[Apr]] -> 0.07279693487 | V16: =tblExpenses[[#This Row],[May]]/tblExpenses[[#Totals],[May]] -> 0.09727626459 | W16: =tblExpenses[[#This Row],[Jun]]/tblExpenses[[#Totals],[Jun]] -> 0.06204379562 | X16: =tblExpenses[[#This Row],[Jul]]/tblExpenses[[#Totals],[Jul]] -> 0.07518796992 | Y16: =tblExpenses[[#This Row],[Aug]]/tblExpenses[[#Totals],[Aug]] -> 0.05957446809 | Z16: =tblExpenses[[#This Row],[Sep]]/tblExpenses[[#Totals],[Sep]] -> 0.02173913043 | AA16: =tblExpenses[[#This Row],[Oct]]/tblExpenses[[#Totals],[Oct]] -> 0.05405405405 | AB16: =tblExpenses[[#This Row],[Nov]]/tblExpenses[[#Totals],[Nov]] -> 0.01689189189 | AC16: =tblExpenses[[#This Row],[Dec]]/tblExpenses[[#Totals],[Dec]] -> 0.008658008658 | AD16: =tblExpenses[[#This Row],[Yearly]]/tblExpenses[[#Totals],[Yearly]] -> 0.05268422808
B17: Taxes (real estate, etc.) | D17: 16 | E17: 13 | F17: 10 | G17: 7 | H17: 13 | I17: 3 | J17: 13 | K17: 17 | L17: 9 | M17: 4 | N17: 22 | O17: 18 | P17: =SUM(tblExpenses[[#This Row],[Column1]:[Dec]]) -> 145 | Q17: 0.14 | R17: =tblExpenses[[#This Row],[Column1]]/tblExpenses[[#Totals],[Column1]] -> 0.06779661017 | S17: =tblExpenses[[#This Row],[Feb]]/tblExpenses[[#Totals],[Feb]] -> 0.06341463415 | T17: =tblExpenses[[#This Row],[Mar]]/tblExpenses[[#Totals],[Mar]] -> 0.04016064257 | U17: =tblExpenses[[#This Row],[Apr]]/tblExpenses[[#Totals],[Apr]] -> 0.02681992337 | V17: =tblExpenses[[#This Row],[May]]/tblExpenses[[#Totals],[May]] -> 0.05058365759 | W17: =tblExpenses[[#This Row],[Jun]]/tblExpenses[[#Totals],[Jun]] -> 0.01094890511 | X17: =tblExpenses[[#This Row],[Jul]]/tblExpenses[[#Totals],[Jul]] -> 0.04887218045 | Y17: =tblExpenses[[#This Row],[Aug]]/tblExpenses[[#Totals],[Aug]] -> 0.07234042553 | Z17: =tblExpenses[[#This Row],[Sep]]/tblExpenses[[#Totals],[Sep]] -> 0.03913043478 | AA17: =tblExpenses[[#This Row],[Oct]]/tblExpenses[[#Totals],[Oct]] -> 0.01544401544 | AB17: =tblExpenses[[#This Row],[Nov]]/tblExpenses[[#Totals],[Nov]] -> 0.07432432432 | AC17: =tblExpenses[[#This Row],[Dec]]/tblExpenses[[#Totals],[Dec]] -> 0.07792207792 | AD17: =tblExpenses[[#This Row],[Yearly]]/tblExpenses[[#Totals],[Yearly]] -> 0.04834944982
B18: Interest | D18: 3 | E18: 2 | F18: 19 | G18: 21 | H18: 13 | I18: 9 | J18: 7 | K18: 13 | L18: 3 | M18: 6 | N18: 10 | O18: 13 | P18: =SUM(tblExpenses[[#This Row],[Column1]:[Dec]]) -> 119 | Q18: 0.06 | R18: =tblExpenses[[#This Row],[Column1]]/tblExpenses[[#Totals],[Column1]] -> 0.01271186441 | S18: =tblExpenses[[#This Row],[Feb]]/tblExpenses[[#Totals],[Feb]] -> 0.009756097561 | T18: =tblExpenses[[#This Row],[Mar]]/tblExpenses[[#Totals],[Mar]] -> 0.07630522088 | U18: =tblExpenses[[#This Row],[Apr]]/tblExpenses[[#Totals],[Apr]] -> 0.08045977011 | V18: =tblExpenses[[#This Row],[May]]/tblExpenses[[#Totals],[May]] -> 0.05058365759 | W18: =tblExpenses[[#This Row],[Jun]]/tblExpenses[[#Totals],[Jun]] -> 0.03284671533 | X18: =tblExpenses[[#This Row],[Jul]]/tblExpenses[[#Totals],[Jul]] -> 0.02631578947 | Y18: =tblExpenses[[#This Row],[Aug]]/tblExpenses[[#Totals],[Aug]] -> 0.05531914894 | Z18: =tblExpenses[[#This Row],[Sep]]/tblExpenses[[#Totals],[Sep]] -> 0.01304347826 | AA18: =tblExpenses[[#This Row],[Oct]]/tblExpenses[[#Totals],[Oct]] -> 0.02316602317 | AB18: =tblExpenses[[#This Row],[Nov]]/tblExpenses[[#Totals],[Nov]] -> 0.03378378378 | AC18: =tblExpenses[[#This Row],[Dec]]/tblExpenses[[#Totals],[Dec]] -> 0.05627705628 | AD18: =tblExpenses[[#This Row],[Yearly]]/tblExpenses[[#Totals],[Yearly]] -> 0.0396798933
B19: Depreciation | D19: 8 | E19: 7 | F19: 6 | G19: 7 | H19: 7 | I19: 6 | J19: 15 | K19: 23 | L19: 21 | M19: 16 | N19: 19 | O19: 7 | P19: =SUM(tblExpenses[[#This Row],[Column1]:[Dec]]) -> 142 | Q19: 0.01 | R19: =tblExpenses[[#This Row],[Column1]]/tblExpenses[[#Totals],[Column1]] -> 0.03389830508 | S19: =tblExpenses[[#This Row],[Feb]]/tblExpenses[[#Totals],[Feb]] -> 0.03414634146 | T19: =tblExpenses[[#This Row],[Mar]]/tblExpenses[[#Totals],[Mar]] -> 0.02409638554 | U19: =tblExpenses[[#This Row],[Apr]]/tblExpenses[[#Totals],[Apr]] -> 0.02681992337 | V19: =tblExpenses[[#This Row],[May]]/tblExpenses[[#Totals],[May]] -> 0.02723735409 | W19: =tblExpenses[[#This Row],[Jun]]/tblExpenses[[#Totals],[Jun]] -> 0.02189781022 | X19: =tblExpenses[[#This Row],[Jul]]/tblExpenses[[#Totals],[Jul]] -> 0.05639097744 | Y19: =tblExpenses[[#This Row],[Aug]]/tblExpenses[[#Totals],[Aug]] -> 0.09787234043 | Z19: =tblExpenses[[#This Row],[Sep]]/tblExpenses[[#Totals],[Sep]] -> 0.09130434783 | AA19: =tblExpenses[[#This Row],[Oct]]/tblExpenses[[#Totals],[Oct]] -> 0.06177606178 | AB19: =tblExpenses[[#This Row],[Nov]]/tblExpenses[[#Totals],[Nov]] -> 0.06418918919 | AC19: =tblExpenses[[#This Row],[Dec]]/tblExpenses[[#Totals],[Dec]] -> 0.0303030303 | AD19: =tblExpenses[[#This Row],[Yearly]]/tblExpenses[[#Totals],[Yearly]] -> 0.04734911637
B20: Other expenses (specify) | D20: 14 | E20: 4 | F20: 24 | G20: 6 | H20: 20 | I20: 14 | J20: 21 | K20: 20 | L20: 22 | M20: 3 | N20: 14 | O20: 6 | P20: =SUM(tblExpenses[[#This Row],[Column1]:[Dec]]) -> 168 | Q20: 0.01 | R20: =tblExpenses[[#This Row],[Column1]]/tblExpenses[[#Totals],[Column1]] -> 0.0593220339 | S20: =tblExpenses[[#This Row],[Feb]]/tblExpenses[[#Totals],[Feb]] -> 0.01951219512 | T20: =tblExpenses[[#This Row],[Mar]]/tblExpenses[[#Totals],[Mar]] -> 0.09638554217 | U20: =tblExpenses[[#This Row],[Apr]]/tblExpenses[[#Totals],[Apr]] -> 0.02298850575 | V20: =tblExpenses[[#This Row],[May]]/tblExpenses[[#Totals],[May]] -> 0.07782101167 | W20: =tblExpenses[[#This Row],[Jun]]/tblExpenses[[#Totals],[Jun]] -> 0.05109489051 | X20: =tblExpenses[[#This Row],[Jul]]/tblExpenses[[#Totals],[Jul]] -> 0.07894736842 | Y20: =tblExpenses[[#This Row],[Aug]]/tblExpenses[[#Totals],[Aug]] -> 0.08510638298 | Z20: =tblExpenses[[#This Row],[Sep]]/tblExpenses[[#Totals],[Sep]] -> 0.09565217391 | AA20: =tblExpenses[[#This Row],[Oct]]/tblExpenses[[#Totals],[Oct]] -> 0.01158301158 | AB20: =tblExpenses[[#This Row],[Nov]]/tblExpenses[[#Totals],[Nov]] -> 0.0472972973 | AC20: =tblExpenses[[#This Row],[Dec]]/tblExpenses[[#Totals],[Dec]] -> 0.02597402597 | AD20: =tblExpenses[[#This Row],[Yearly]]/tblExpenses[[#Totals],[Yearly]] -> 0.05601867289
B21: Other expenses (specify) | D21: 14 | E21: 7 | F21: 24 | G21: 10 | H21: 7 | I21: 24 | J21: 2 | K21: 11 | L21: 21 | M21: 19 | N21: 19 | O21: 20 | P21: =SUM(tblExpenses[[#This Row],[Column1]:[Dec]]) -> 178 | Q21: 0.01 | R21: =tblExpenses[[#This Row],[Column1]]/tblExpenses[[#Totals],[Column1]] -> 0.0593220339 | S21: =tblExpenses[[#This Row],[Feb]]/tblExpenses[[#Totals],[Feb]] -> 0.03414634146 | T21: =tblExpenses[[#This Row],[Mar]]/tblExpenses[[#Totals],[Mar]] -> 0.09638554217 | U21: =tblExpenses[[#This Row],[Apr]]/tblExpenses[[#Totals],[Apr]] -> 0.03831417625 | V21: =tblExpenses[[#This Row],[May]]/tblExpenses[[#Totals],[May]] -> 0.02723735409 | W21: =tblExpenses[[#This Row],[Jun]]/tblExpenses[[#Totals],[Jun]] -> 0.08759124088 | X21: =tblExpenses[[#This Row],[Jul]]/tblExpenses[[#Totals],[Jul]] -> 0.007518796992 | Y21: =tblExpenses[[#This Row],[Aug]]/tblExpenses[[#Totals],[Aug]] -> 0.04680851064 | Z21: =tblExpenses[[#This Row],[Sep]]/tblExpenses[[#Totals],[Sep]] -> 0.09130434783 | AA21: =tblExpenses[[#This Row],[Oct]]/tblExpenses[[#Totals],[Oct]] -> 0.07335907336 | AB21: =tblExpenses[[#This Row],[Nov]]/tblExpenses[[#Totals],[Nov]] -> 0.06418918919 | AC21: =tblExpenses[[#This Row],[Dec]]/tblExpenses[[#Totals],[Dec]] -> 0.08658008658 | AD21: =tblExpenses[[#This Row],[Yearly]]/tblExpenses[[#Totals],[Yearly]] -> 0.05935311771
B22: Other expenses (specify) | D22: 11 | E22: 8 | F22: 25 | G22: 11 | H22: 9 | I22: 24 | J22: 13 | K22: 14 | L22: 19 | M22: 24 | N22: 15 | O22: 7 | P22: =SUM(tblExpenses[[#This Row],[Column1]:[Dec]]) -> 180 | Q22: 0.01 | R22: =tblExpenses[[#This Row],[Column1]]/tblExpenses[[#Totals],[Column1]] -> 0.04661016949 | S22: =tblExpenses[[#This Row],[Feb]]/tblExpenses[[#Totals],[Feb]] -> 0.03902439024 | T22: =tblExpenses[[#This Row],[Mar]]/tblExpenses[[#Totals],[Mar]] -> 0.1004016064 | U22: =tblExpenses[[#This Row],[Apr]]/tblExpenses[[#Totals],[Apr]] -> 0.04214559387 | V22: =tblExpenses[[#This Row],[May]]/tblExpenses[[#Totals],[May]] -> 0.03501945525 | W22: =tblExpenses[[#This Row],[Jun]]/tblExpenses[[#Totals],[Jun]] -> 0.08759124088 | X22: =tblExpenses[[#This Row],[Jul]]/tblExpenses[[#Totals],[Jul]] -> 0.04887218045 | Y22: =tblExpenses[[#This Row],[Aug]]/tblExpenses[[#Totals],[Aug]] -> 0.05957446809 | Z22: =tblExpenses[[#This Row],[Sep]]/tblExpenses[[#Totals],[Sep]] -> 0.08260869565 | AA22: =tblExpenses[[#This Row],[Oct]]/tblExpenses[[#Totals],[Oct]] -> 0.09266409266 | AB22: =tblExpenses[[#This Row],[Nov]]/tblExpenses[[#Totals],[Nov]] -> 0.05067567568 | AC22: =tblExpenses[[#This Row],[Dec]]/tblExpenses[[#Totals],[Dec]] -> 0.0303030303 | AD22: =tblExpenses[[#This Row],[Yearly]]/tblExpenses[[#Totals],[Yearly]] -> 0.06002000667
B23: Misc. (unspecified) | D23: 8 | E23: 20 | F23: 11 | G23: 11 | H23: 11 | I23: 20 | J23: 12 | K23: 16 | L23: 5 | M23: 7 | N23: 21 | O23: 3 | P23: =SUM(tblExpenses[[#This Row],[Column1]:[Dec]]) -> 145 | Q23: 0.02 | R23: =tblExpenses[[#This Row],[Column1]]/tblExpenses[[#Totals],[Column1]] -> 0.03389830508 | S23: =tblExpenses[[#This Row],[Feb]]/tblExpenses[[#Totals],[Feb]] -> 0.09756097561 | T23: =tblExpenses[[#This Row],[Mar]]/tblExpenses[[#Totals],[Mar]] -> 0.04417670683 | U23: =tblExpenses[[#This Row],[Apr]]/tblExpenses[[#Totals],[Apr]] -> 0.04214559387 | V23: =tblExpenses[[#This Row],[May]]/tblExpenses[[#Totals],[May]] -> 0.04280155642 | W23: =tblExpenses[[#This Row],[Jun]]/tblExpenses[[#Totals],[Jun]] -> 0.07299270073 | X23: =tblExpenses[[#This Row],[Jul]]/tblExpenses[[#Totals],[Jul]] -> 0.04511278195 | Y23: =tblExpenses[[#This Row],[Aug]]/tblExpenses[[#Totals],[Aug]] -> 0.06808510638 | Z23: =tblExpenses[[#This Row],[Sep]]/tblExpenses[[#Totals],[Sep]] -> 0.02173913043 | AA23: =tblExpenses[[#This Row],[Oct]]/tblExpenses[[#Totals],[Oct]] -> 0.02702702703 | AB23: =tblExpenses[[#This Row],[Nov]]/tblExpenses[[#Totals],[Nov]] -> 0.07094594595 | AC23: =tblExpenses[[#This Row],[Dec]]/tblExpenses[[#Totals],[Dec]] -> 0.01298701299 | AD23: =tblExpenses[[#This Row],[Yearly]]/tblExpenses[[#Totals],[Yearly]] -> 0.04834944982
B24: TOTAL EXPENSES | D24: =SUBTOTAL(109,tblExpenses[Column1]) -> 236 | E24: =SUBTOTAL(109,tblExpenses[Feb]) -> 205 | F24: =SUBTOTAL(109,tblExpenses[Mar]) -> 249 | G24: =SUBTOTAL(109,tblExpenses[Apr]) -> 261 | H24: =SUBTOTAL(109,tblExpenses[May]) -> 257 | I24: =SUBTOTAL(109,tblExpenses[Jun]) -> 274 | J24: =SUBTOTAL(109,tblExpenses[Jul]) -> 266 | K24: =SUBTOTAL(109,tblExpenses[Aug]) -> 235 | L24: =SUBTOTAL(109,tblExpenses[Sep]) -> 230 | M24: =SUBTOTAL(109,tblExpenses[Oct]) -> 259 | N24: =SUBTOTAL(109,tblExpenses[Nov]) -> 296 | O24: =SUBTOTAL(109,tblExpenses[Dec]) -> 231 | P24: =SUBTOTAL(109,tblExpenses[Yearly]) -> 2999 | Q24: =SUBTOTAL(109,tblExpenses[Index %]) -> 1 | R24: =SUBTOTAL(109,tblExpenses[Jan %]) -> 1 | S24: =SUBTOTAL(109,tblExpenses[Feb %]) -> 1 | T24: =SUBTOTAL(109,tblExpenses[Mar %]) -> 1 | U24: =SUBTOTAL(109,tblExpenses[Apr %]) -> 1 | V24: =SUBTOTAL(109,tblExpenses[May %]) -> 1 | W24: =SUBTOTAL(109,tblExpenses[Jun %]) -> 1 | X24: =SUBTOTAL(109,tblExpenses[Jul %]) -> 1 | Y24: =SUBTOTAL(109,tblExpenses[Aug %]) -> 1 | Z24: =SUBTOTAL(109,tblExpenses[Sep %]) -> 1 | AA24: =SUBTOTAL(109,tblExpenses[Oct %]) -> 1 | AB24: =SUBTOTAL(109,tblExpenses[Nov %]) -> 1 | AC24: =SUBTOTAL(109,tblExpenses[Dec %]) -> 1 | AD24: =SUBTOTAL(109,tblExpenses[Year %]) -> 1
B26: Net Profit | D26: ='Cost of Sales'!$D$14-tblExpenses[[#Totals],[Column1]] -> 123 | E26: ='Cost of Sales'!E14-tblExpenses[[#Totals],[Feb]] -> 175 | F26: ='Cost of Sales'!F14-tblExpenses[[#Totals],[Mar]] -> 256 | G26: ='Cost of Sales'!G14-tblExpenses[[#Totals],[Apr]] -> 109 | H26: ='Cost of Sales'!H14-tblExpenses[[#Totals],[May]] -> 156 | I26: ='Cost of Sales'!I14-tblExpenses[[#Totals],[Jun]] -> -8 | J26: ='Cost of Sales'!J14-tblExpenses[[#Totals],[Jul]] -> 32 | K26: ='Cost of Sales'!K14-tblExpenses[[#Totals],[Aug]] -> 214 | L26: ='Cost of Sales'!L14-tblExpenses[[#Totals],[Sep]] -> 100 | M26: ='Cost of Sales'!M14-tblExpenses[[#Totals],[Oct]] -> 148 | N26: ='Cost of Sales'!N14-tblExpenses[[#Totals],[Nov]] -> 179 | O26: ='Cost of Sales'!O14-tblExpenses[[#Totals],[Dec]] -> 359 | P26: =SUM(D26:O26) -> 1843 | R26: =D26/$P$26 -> 0.06673901248 | S26: =E26/$P$26 -> 0.09495387954 | T26: 0.1389039609 | U26: 0.05914270212 | V26: 0.08464460119 | W26: -0.004340748779 | X26: 0.01736299512 | Y26: 0.1161150298 | Z26: 0.05425935974 | AA26: 0.08030385241 | AB26: 0.09712425393 | AC26: 0.1947911015 | AD26: 1
